fUST/lending_fUST_20250323
["ID","MTS","AMOUNT","RATE_DAILY","PERIOD"]
[356562627,1742679032833,-500.0,0.00027397,2]
[356562628,1742679032842,-500.0,0.00027397,2]
[356562629,1742679032852,-500.0,0.00027397,2]
[356562630,1742679032861,-500.0,0.00027397,2]
[356562631,1742679032871,-500.0,0.00027397,2]
[356562632,1742679032881,-500.0,0.00027397,2]
[356562633,1742679032891,-641.76,0.00027397,2]
[356562634,1742679032900,-500.0,0.00027397,2]
[356562635,1742679032910,-500.0,0.00027397,2]
[356562636,1742679032919,-715.31,0.00027397,2]
[356562637,1742679032931,-500.0,0.00027397,2]
[356562638,1742679032941,-500.0,0.00027397,2]
[356562639,1742679032951,-500.0,0.00027397,2]
[356562640,1742679032961,-500.0,0.00027397,2]
[356562641,1742679032971,-500.0,0.00027397,2]
[356562642,1742679032981,-681.3,0.00027397,2]
[356562643,1742679032991,-576.76,0.00027397,2]
[356562644,1742679033001,-500.0,0.00027397,2]
[356562645,1742679033011,-500.0,0.00027397,2]
[356562646,1742679033020,-500.0,0.00027397,2]
[356562647,1742679033030,-500.0,0.00027397,2]
[356562648,1742679033039,-500.0,0.00027397,2]
[356562649,1742679033050,-500.0,0.00027397,2]
[356562650,1742679033061,-558.88936145,0.00027397,2]
[356562651,1742679033071,-500.0,0.00027397,2]
[356562652,1742679033081,-500.0,0.00027397,2]
[356562653,1742679033091,-500.0,0.00027397,2]
[356562654,1742679033101,-500.0,0.00027397,2]
[356562655,1742679033111,-500.0,0.00027397,2]
[356562656,1742679033122,-500.0,0.00027397,2]
[356562657,1742679033133,-500.0,0.00027397,2]
[356562658,1742679033143,-500.0,0.00027397,2]
[356562659,1742679033154,-500.0,0.00027397,2]
[356562660,1742679033164,-1155.76,0.00027397,2]
[356562661,1742679033175,-1069.69,0.00027397,2]
[356562662,1742679033185,-500.0,0.00027397,2]
[356562663,1742679033196,-677.22,0.00027397,2]
[356562664,1742679033206,-500.0,0.00027397,2]
[356562665,1742679033217,-500.0,0.00027397,2]
[356562666,1742679033228,-824.18,0.00027397,2]
[356562667,1742679033238,-500.0,0.00027397,2]
[356562668,1742679033249,-500.0,0.00027397,2]
[356562669,1742679033260,-538.77,0.00027397,2]
[356562670,1742679033270,-500.0,0.00027397,2]
[356562671,1742679033280,-772.58,0.00027397,2]
[356562672,1742679033290,-727.88,0.00027397,2]
[356562673,1742679033299,-803.28,0.00027397,2]
[356562674,1742679033309,-515.85,0.00027397,2]
[356562675,1742679033319,-247.69076389,0.00027397,2]
[356562676,1742679033328,-922.64,0.00027397,2]
[356562677,1742679033339,-500.0,0.00027397,2]
[356562678,1742679033348,-500.0,0.00027397,2]
[356562679,1742679033359,-500.0,0.00027397,2]
[356562680,1742679033369,-500.0,0.00027397,2]
[356562681,1742679033379,-500.0,0.00027397,2]
[356562682,1742679033390,-500.0,0.00027397,2]
[356562683,1742679033400,-1047.55,0.00027397,2]
[356562684,1742679033410,-712.61,0.00027397,2]
[356562685,1742679033420,-534.84,0.00027397,2]
[356562686,1742679033430,-577.51,0.00027397,2]
[356562687,1742679033440,-500.0,0.00027397,2]
[356562688,1742679033450,-808.27,0.00027397,2]
[356562689,1742679033461,-500.0,0.00027397,2]
[356562690,1742679033471,-500.0,0.00027397,2]
[356562691,1742679033481,-500.0,0.00027397,2]
[356562692,1742679033491,-500.0,0.00027397,2]
[356562693,1742679033500,-500.0,0.00027397,2]
[356562694,1742679033510,-703.3,0.00027397,2]
[356562695,1742679033520,-500.0,0.00027397,2]
[356562696,1742679033530,-504.85,0.00027397,2]
[356562697,1742679033540,-500.0,0.00027397,2]
[356562698,1742679033549,-1139.45,0.00027397,2]
[356562699,1742679033559,-500.0,0.00027397,2]
[356562700,1742679033569,-500.0,0.00027397,2]
[356562701,1742679033579,-774.12,0.00027397,2]
[356562702,1742679033588,-500.0,0.00027397,2]
[356562703,1742679033598,-582.64,0.00027397,2]
[356562704,1742679033607,-887.93,0.00027397,2]
[356562705,1742679033617,-2125.3,0.00027397,2]
[356562706,1742679033627,-500.0,0.00027397,2]
[356562707,1742679033637,-841.09,0.00027397,2]
[356562708,1742679033646,-500.0,0.00027397,2]
[356562709,1742679033656,-919.58,0.00027397,2]
[356562710,1742679033666,-922.42,0.00027397,2]
[356562711,1742679033676,-902.27,0.00027397,2]
[356562712,1742679033685,-500.0,0.00027397,2]
[356562713,1742679033695,-2328.3,0.00027397,2]
[356562714,1742679033706,-500.0,0.00027397,2]
[356562715,1742679033716,-500.0,0.00027397,2]
[356562716,1742679033726,-1304.62,0.00027397,2]
[356562717,1742679033736,-2359.75,0.00027397,2]
[356562718,1742679033746,-845.94,0.00027397,2]
[356562719,1742679033761,-500.0,0.00027397,2]
[356562720,1742679033771,-500.0,0.00027397,2]
[356562721,1742679033782,-2263.93,0.00027397,2]
[356562722,1742679033792,-500.0,0.00027397,2]
[356562723,1742679033801,-500.0,0.00027397,2]
[356562724,1742679033811,-500.0,0.00027397,2]
[356562725,1742679033831,-500.0,0.00027397,2]
[356562726,1742679033843,-703.57,0.00027397,2]
[356562727,1742679033853,-1829.95,0.00027397,2]
[356562728,1742679033863,-500.0,0.00027397,2]
[356562729,1742679033873,-500.0,0.00027397,2]
[356562730,1742679033883,-500.0,0.00027397,2]
[356562731,1742679033893,-1268.59,0.00027397,2]
[356562732,1742679033903,-1261.88,0.00027397,2]
[356562733,1742679033913,-1561.46,0.00027397,2]
[356562734,1742679033923,-929.39,0.00027397,2]
[356562735,1742679033933,-500.0,0.00027397,2]
[356562736,1742679033943,-500.0,0.00027397,2]
[356562737,1742679033953,-913.0,0.00027397,2]
[356562738,1742679033963,-672.53,0.00027397,2]
[356562739,1742679033972,-500.0,0.00027397,2]
[356562740,1742679033982,-717.42,0.00027397,2]
[356562741,1742679033992,-2949.15,0.00027397,2]
[356562742,1742679034002,-500.0,0.00027397,2]
[356562743,1742679034012,-500.0,0.00027397,2]
[356562744,1742679034023,-1235.54,0.00027397,2]
[356562745,1742679034033,-500.0,0.00027397,2]
[356562746,1742679034042,-1075.59,0.00027397,2]
[356562747,1742679034052,-911.66,0.00027397,2]
[356562748,1742679034062,-500.0,0.00027397,2]
[356562749,1742679034071,-671.56,0.00027397,2]
[356562750,1742679034081,-500.0,0.00027397,2]
[356562751,1742679034091,-604.41,0.00027397,2]
[356562752,1742679034100,-1223.12,0.00027397,2]
[356562753,1742679034110,-500.0,0.00027397,2]
[356562754,1742679034119,-535.56,0.00027397,2]
[356562755,1742679034129,-500.0,0.00027397,2]
[356562756,1742679034139,-720.29,0.00027397,2]
[356562757,1742679034149,-500.0,0.00027397,2]
[356562758,1742679034158,-1678.95,0.00027397,2]
[356562759,1742679034168,-580.28,0.00027397,2]
[356562760,1742679034178,-500.0,0.00027397,2]
[356562761,1742679034188,-500.0,0.00027397,2]
[356562762,1742679034198,-808.6,0.00027397,2]
[356562763,1742679034208,-757.85,0.00027397,2]
[356562764,1742679034217,-530.62,0.00027397,2]
[356562765,1742679034229,-500.0,0.00027397,2]
[356562766,1742679034239,-500.0,0.00027397,2]
[356562767,1742679034249,-500.0,0.00027397,2]
[356562768,1742679034259,-500.0,0.00027397,2]
[356562769,1742679034269,-521.17,0.00027397,2]
[356562770,1742679034279,-500.0,0.00027397,2]
[356562771,1742679034291,-643.24,0.00027397,2]
[356562772,1742679034300,-835.54,0.00027397,2]
[356562773,1742679034310,-1102.76,0.00027397,2]
[356562774,1742679034320,-500.0,0.00027397,2]
[356562775,1742679034330,-1210.14,0.00027397,2]
[356562776,1742679034340,-3114.22,0.00027397,2]
[356562777,1742679034350,-500.0,0.00027397,2]
[356562778,1742679034360,-19221.8,0.00027397,2]
[356562779,1742679034370,-870.09,0.00027397,2]
[356562780,1742679034380,-1899.14,0.00027397,2]
[356562781,1742679034389,-500.0,0.00027397,2]
[356562782,1742679034399,-500.0,0.00027397,2]
[356562783,1742679034409,-617.72,0.00027397,2]
[356562784,1742679034419,-2139.23,0.00027397,2]
[356562785,1742679034430,-500.0,0.00027397,2]
[356562786,1742679034440,-343.45846112,0.00027397,2]
[356562787,1742679034450,-500.0,0.00027397,2]
[356562788,1742679034460,-570.07,0.00027397,2]
[356562789,1742679034470,-1205.86,0.00027397,2]
[356562790,1742679034481,-500.0,0.00027397,2]
[356562791,1742679034491,-2711.84,0.00027397,2]
[356562792,1742679034500,-500.0,0.00027397,2]
[356562793,1742679034510,-4125.04,0.00027397,2]
[356562794,1742679034520,-1322.76,0.00027397,2]
[356562795,1742679034536,-734.43,0.00027397,2]
[356562796,1742679034545,-706.22,0.00027397,2]
[356562797,1742679034555,-2978.74,0.00027397,2]
[356562798,1742679034565,-1610.62,0.00027397,2]
[356562799,1742679034575,-1035.94,0.00027397,2]
[356562800,1742679034584,-500.0,0.00027397,2]
[356562801,1742679034594,-717.6,0.00027397,2]
[356562802,1742679034604,-1346.18,0.00027397,2]
[356562803,1742679034614,-516.04,0.00027397,2]
[356562804,1742679034624,-2441.85,0.00027397,2]
[356562805,1742679034634,-993.02,0.00027397,2]
[356562806,1742679034644,-3523.74,0.00027397,2]
[356562807,1742679034658,-2618.59,0.00027397,2]
[356562808,1742679034668,-593.45,0.00027397,2]
[356562809,1742679034678,-500.0,0.00027397,2]
[356562810,1742679034688,-500.0,0.00027397,2]
[356562811,1742679034698,-500.0,0.00027397,2]
[356562812,1742679034707,-500.0,0.00027397,2]
[356562813,1742679034717,-500.0,0.00027397,2]
[356562814,1742679034727,-1163.59,0.00027397,2]
[356562815,1742679034737,-150.17,0.00027397,2]
[356562816,1742679034747,-7204.57,0.00027397,2]
[356562817,1742679034762,-500.0,0.00027397,2]
[356562818,1742679034771,-697.4,0.00027397,2]
[356562819,1742679034781,-598.57,0.00027397,2]
[356562820,1742679034791,-20754.39,0.00027397,2]
[356562821,1742679034802,-639.7,0.00027397,2]
[356562822,1742679034812,-500.0,0.00027397,2]
[356562823,1742679034822,-500.0,0.00027397,2]
[356562824,1742679034832,-1969.97,0.00027397,2]
[356562825,1742679034842,-533.92,0.00027397,2]
[356562826,1742679034852,-500.0,0.00027397,2]
[356562827,1742679034862,-500.0,0.00027397,2]
[356562828,1742679034874,-500.0,0.00027397,2]
[356562829,1742679034885,-2400.1,0.00027397,2]
[356562830,1742679034895,-500.0,0.00027397,2]
[356562831,1742679034905,-11449.22,0.00027397,2]
[356562832,1742679034915,-1503.72,0.00027397,2]
[356562833,1742679034926,-500.0,0.00027397,2]
[356562834,1742679034935,-1154.23,0.00027397,2]
[356562835,1742679034945,-11977.56,0.00027397,2]
[356562836,1742679034955,-8610.77,0.00027397,2]
[356562837,1742679034965,-1071.29,0.00027397,2]
[356562838,1742679034974,-500.0,0.00027397,2]
[356562839,1742679034984,-843.98,0.00027397,2]
[356562840,1742679034994,-1977.49,0.00027397,2]
[356562841,1742679035003,-1733.03,0.00027397,2]
[356562842,1742679035013,-1335.04,0.00027397,2]
[356562843,1742679035023,-3484.94,0.00027397,2]
[356562844,1742679035033,-500.0,0.00027397,2]
[356562845,1742679035043,-3039.03,0.00027397,2]
[356562846,1742679035053,-937.32,0.00027397,2]
[356562847,1742679035064,-717.32,0.00027397,2]
[356562848,1742679035074,-500.0,0.00027397,2]
[356562849,1742679035084,-4443.69,0.00027397,2]
[356562850,1742679035095,-2241.45,0.00027397,2]
[356562851,1742679035104,-500.0,0.00027397,2]
[356562852,1742679035115,-808.73,0.00027397,2]
[356562853,1742679035124,-1945.32,0.00027397,2]
[356562854,1742679035135,-630.7160254,0.00027397,2]
[356562855,1742679035145,-500.0,0.00027397,2]
[356562856,1742679035155,-500.0,0.00027397,2]
[356562857,1742679035164,-26379.45,0.00027397,2]
[356562858,1742679035174,-3453.7,0.00027397,2]
[356562859,1742679035184,-500.0,0.00027397,2]
[356562860,1742679035194,-1167.58,0.00027397,2]
[356562861,1742679035205,-500.0,0.00027397,2]
[356562862,1742679035215,-2954.85,0.00027397,2]
[356562863,1742679035225,-1240.49,0.00027397,2]
[356562864,1742679035235,-983.34,0.00027397,2]
[356562865,1742679035244,-1101.53,0.00027397,2]
[356562866,1742679035253,-500.0,0.00027397,2]
[356562867,1742679035263,-509.65,0.00027397,2]
[356562868,1742679035273,-500.0,0.00027397,2]
[356562869,1742679035282,-597.5,0.00027397,2]
[356562870,1742679035292,-141.15524103,0.00027397,2]
[356562871,1742679035552,-1858.84475897,0.00027397,2]
[356562872,1742679035562,-412.73499574,0.00027397,2]
[356562873,1742679035571,-500.0,0.00027397,2]
[356562874,1742679035580,-500.0,0.00027397,2]
[356562875,1742679035590,-3332.63712423,0.00027397,2]
[356562876,1742679035602,-2055.95287577,0.00027397,2]
[356562877,1742679035612,-500.0,0.00027397,2]
[356562878,1742679035622,-500.0,0.00027397,2]
[356562879,1742679035631,-6477.68,0.00027397,2]
[356562880,1742679035641,-505.34826254,0.00027397,2]
[356562881,1742679035650,-500.0,0.00027397,2]
[356562882,1742679035659,-1289.95,0.00027397,2]
[356562883,1742679035669,-1019.59,0.00027397,2]
[356562884,1742679035681,-860.18,0.00027397,2]
[356562885,1742679035690,-2625.62804141,0.00027397,2]
[356562886,1742679035702,-480.13206192,0.00027397,2]
[356562905,1742679037806,-14503.45619204,0.00027397,2]
[356562917,1742679040132,-0.00564362,0.00027397,2]
[356562939,1742679042985,-913.31517019,0.00027397,2]
[356562979,1742679046071,-1064.57856208,0.00027397,2]
[356562980,1742679046131,-836.984,0.00027397,2]
[356562981,1742679046142,-1975.44129159,0.00027397,2]
[356562982,1742679046154,-993.35,0.00027397,2]
[356562993,1742679953119,-300.0,0.00025911,2]
[356562994,1742679953140,-401.62018262,0.00025911,2]
[356562995,1742679953162,-149.37971415,0.00025911,2]
[356562996,1742680031084,-153.5350077,0.00025911,2]
[356562997,1742680031106,-5714.44499033,0.00025912,2]
[356562998,1742680049626,-261.38846657,0.0001822,2]
[356562999,1742680152093,-361.87585991,0.00018038,2]
[356563000,1742680152114,-210.67037607,0.0001822,2]
[356563001,1742680152141,-33.90165736,0.0001822,2]
[356563002,1742680152164,-6821.90278705,0.00025912,2]
[356563044,1742680237894,-19948.6200589,0.0002596,2]
[356563045,1742680237904,-399.42302435,0.00026887,2]
[356563046,1742680237913,-1403.73833643,0.000269,4]
[356563047,1742680237922,-385.50267099,0.00026976,2]
[356563048,1742680237932,-49599.22085077,0.00026977,2]
[356563049,1742680237954,-1109.67600003,0.00026977,2]
[356563062,1742680240375,-10618.4632809,0.00026977,2]
[356563070,1742680242735,-154.5175,0.00026977,2]
[356563090,1742680243113,-3106.32140761,0.00026977,2]
[356563391,1742680246107,-2026.99681517,0.00026977,2]
[356563404,1742680246210,-1429.9999999,0.00026977,2]
[356566409,1742680276786,-430.9565,0.0002325,2]
[356567029,1742680283170,-255.9726,0.00022088,2]
[356567177,1742680288050,-500.0,0.00020983,2]
[356567178,1742680294416,-363.55976146,0.00019934,2]
[356567183,1742680945295,-234.24163854,0.00023144,2]
[356567184,1742680950360,-151.0,0.00021987,2]
[356567185,1742680955829,-271.0826162,0.00020887,2]
[356567186,1742680958798,-185.58708785,0.00020679,2]
[356567187,1742681037349,-31.85592501,0.00020679,2]
[356567188,1742681037371,-174.24542969,0.00020887,2]
[356567189,1742681045413,-153.0,0.00020679,2]
[356567190,1742681236548,-177.298009,0.00020472,2]
[356567191,1742681238135,-214.39043355,0.00020472,2]
[356567192,1742681238157,-54.67195411,0.00020887,2]
[356567193,1742681238179,-349.0,0.00021987,2]
[356567194,1742681238201,-265.75836146,0.00023144,2]
[356567195,1742681238223,-415.37466717,0.00024301,2]
[356567196,1742681351087,-84.62533283,0.00024301,2]
[356567197,1742681351108,-1097.8014,0.00024316,2]
[356567198,1742681351129,-167.321308,0.00025315,2]
[356567199,1742681351149,-250.0,0.00025336,2]
[356567200,1742681351169,-313.0709,0.00025516,2]
[356567201,1742681351189,-244.29969885,0.00025562,2]
[356567388,1742681440518,-0.0081101,0.00025562,2]
[356567389,1742681443824,-56.51796315,0.00025562,2]
[356567390,1742681443834,-150.0,0.0002669,2]
[356567391,1742681443844,-383.38047334,0.000267,2]
[356567392,1742681443853,-300.0,0.00026799,2]
[356567393,1742681443863,-31407.9685408,0.000268,5]
[356567394,1742681443872,-1151.80881108,0.000268,2]
[356567395,1742681443882,-782.74051949,0.00026847,2]
[356567396,1742681443891,-600.0,0.00026861,2]
[356567397,1742681443901,-381.41444843,0.00026866,2]
[356567398,1742681443911,-24015.82764546,0.00026867,2]
[356567407,1742681446272,-32666.32394648,0.00026867,2]
[356567408,1742681446388,-41301.58470771,0.00026867,2]
[356567410,1742681446400,-78492.04962435,0.00026867,2]
[356567412,1742681446409,-5000.0,0.00026877,2]
[356567414,1742681446419,-54097.94528803,0.00026877,2]
[356567416,1742681446430,-11650.0,0.00026877,2]
[356567418,1742682337118,-186.4270124,0.00026001,2]
[356567419,1742682337139,-150.95302394,0.00026676,2]
[356567420,1742682337160,-150.95302394,0.00026696,2]
[356567421,1742682337181,-131.18108837,0.000267,2]
[356567423,1742682432090,-335.45791419,0.00026676,2]
[356567424,1742682432111,-914.6141517,0.000267,2]
[356567425,1742682495301,-207.72453337,0.000125,2]
[356567429,1742682545093,-541.34444804,0.000125,2]
[356567430,1742682547764,165.590968,0.00010959,2]
[356567431,1742682548072,-16.46781859,0.000125,2]
[356567464,1742682646623,-448.63,0.00025722,2]
[356567475,1742683539262,-860.94295807,0.00025722,2]
[356567476,1742683559193,-197.96280052,0.00025722,2]
[356567477,1742683601408,165.590968,0.00010959,2]
[356567479,1742683638103,-361.87585991,0.00024953,2]
[356567480,1742683638134,-3679.55089132,0.00025722,2]
[356567481,1742683638183,-703.044,0.00025722,2]
[356567482,1742683754110,-156.70038463,0.00025722,2]
[356567562,1742683843719,-1009.58894901,0.00025,2]
[356567563,1742683843728,-161.691857,0.00025556,2]
[356567564,1742683843737,-3000.0,0.00026,2]
[356567565,1742683843746,-150.95302394,0.00026567,2]
[356567566,1742683843755,-150.95302394,0.00026589,2]
[356567567,1742683843765,-154.705759,0.00026598,4]
[356567569,1742683843774,-150.95302394,0.0002661,2]
[356567571,1742683843783,-300.0,0.00026655,2]
[356567573,1742683843791,-266.99011391,0.00026656,2]
[356567574,1742683843801,-500.0,0.00026656,2]
[356567575,1742683843810,-401.62018262,0.00026656,2]
[356567576,1742683843819,-428.21708762,0.00026656,2]
[356567582,1742684072075,-154.5175,0.00026654,2]
[356567595,1742684745112,-214.39043355,0.00024953,2]
[356567596,1742684745134,-186.89307973,0.00026545,2]
[356567597,1742684745157,-133.80437916,0.00026545,2]
[356567612,1742684831091,-500.0,0.00026544,2]
[356567613,1742684831114,-500.0,0.00026544,2]
[356567614,1742684831134,-576.29672011,0.00026544,2]
[356567639,1742685031891,-1097.8014,0.00023316,2]
[356567640,1742685031900,-500.0,0.00026543,2]
[356567641,1742685031909,-500.0,0.00026543,2]
[356567642,1742685031919,-500.0,0.00026543,2]
[356567643,1742685031928,-500.0,0.00026543,2]
[356567644,1742685031937,-500.0,0.00026543,2]
[356567645,1742685031946,-500.0,0.00026543,2]
[356567646,1742685031958,-500.0,0.00026543,2]
[356567647,1742685031968,-500.0,0.00026543,2]
[356567648,1742685031977,-500.0,0.00026543,2]
[356567649,1742685031986,-315.57239358,0.00026543,2]
[356567657,1742685037779,-184.42760642,0.00026543,2]
[356567658,1742685037789,-500.0,0.00026543,2]
[356567659,1742685037799,-500.0,0.00026543,2]
[356567660,1742685037809,-500.0,0.00026543,2]
[356567661,1742685037819,-74.00927533,0.00026543,2]
[356567705,1742685045830,-151.0,0.00024953,2]
[356567706,1742685045840,-425.99072467,0.00026543,2]
[356567707,1742685045850,-500.0,0.00026543,2]
[356567708,1742685045860,-202.80122132,0.00026543,2]
[356567709,1742685045871,-500.0,0.00026543,2]
[356567710,1742685045883,-500.0,0.00026543,2]
[356567711,1742685045894,-500.0,0.00026543,2]
[356567712,1742685045904,-500.0,0.00026543,2]
[356567713,1742685045914,-500.0,0.00026543,2]
[356567714,1742685045925,-500.0,0.00026543,2]
[356567715,1742685045935,-500.0,0.00026543,2]
[356567716,1742685045945,-500.0,0.00026543,2]
[356567717,1742685045955,-500.0,0.00026543,2]
[356567718,1742685045968,-500.0,0.00026543,2]
[356567719,1742685045980,-500.0,0.00026543,2]
[356567720,1742685045992,-500.0,0.00026543,2]
[356567721,1742685046003,-500.0,0.00026543,2]
[356567722,1742685046013,-500.0,0.00026543,2]
[356567723,1742685046022,-500.0,0.00026543,2]
[356567724,1742685046032,-500.0,0.00026543,2]
[356567725,1742685046042,-500.0,0.00026543,2]
[356567726,1742685046052,-500.0,0.00026543,2]
[356567727,1742685046062,-500.0,0.00026543,2]
[356567728,1742685046072,-500.0,0.00026543,2]
[356567729,1742685046082,-500.0,0.00026543,2]
[356567730,1742685046092,-508.79817786,0.00026543,2]
[356567731,1742685046103,-500.0,0.00026543,2]
[356567732,1742685046113,-500.0,0.00026543,2]
[356567733,1742685046123,-500.0,0.00026543,2]
[356567734,1742685046133,-500.0,0.00026543,2]
[356567735,1742685046143,-500.0,0.00026543,2]
[356567736,1742685046153,-500.0,0.00026543,2]
[356567737,1742685046163,-500.0,0.00026543,2]
[356567738,1742685046173,-7188.010456,0.00026546,2]
[356567764,1742685441954,-200.0,0.0001822,2]
[356567773,1742685954110,-598.86163531,0.0001822,2]
[356567774,1742685954131,-12.20988772,0.00025385,2]
[356567811,1742686051099,-155.11142028,0.00025385,2]
[356567812,1742686051121,-178.85246748,0.00025542,2]
[356567813,1742686051146,-500.0,0.00025542,2]
[356567814,1742686051171,-500.0,0.00025542,2]
[356567815,1742686051194,-500.0,0.00025542,2]
[356567816,1742686051218,-500.0,0.00025542,2]
[356567817,1742686051243,-500.0,0.00025542,2]
[356567818,1742686051267,-390.13741926,0.00025542,2]
[356567867,1742686093154,-200.0,0.000125,2]
[356567868,1742686100201,-154.03588531,0.00012375,2]
[356567869,1742686149075,-45.96411469,0.00012375,2]
[356567870,1742686149096,-297.03588531,0.000125,2]
[356567872,1742686165086,-60.77638132,0.000125,2]
[356567873,1742686165109,-150.95302394,0.00025483,2]
[356567874,1742686165133,-335.45791419,0.00025483,2]
[356567875,1742686165160,-151.0,0.00025543,7]
[356567876,1742686165183,-151.0,0.00025543,7]
[356567877,1742686165205,-151.0,0.00025543,7]
[356567878,1742686165228,-151.0,0.00025543,7]
[356567879,1742686165251,-151.0,0.00025543,7]
[356567880,1742686165277,-500.0,0.00025547,2]
[356567881,1742686165303,-500.0,0.00025547,2]
[356567882,1742686165328,-500.0,0.00025547,2]
[356567883,1742686165352,-500.0,0.00025547,2]
[356567884,1742686165376,-500.0,0.00025547,2]
[356567885,1742686165405,-500.0,0.00025547,2]
[356567886,1742686165431,-500.0,0.00025547,2]
[356567887,1742686165458,-500.0,0.00025547,2]
[356567888,1742686165487,-346.77650163,0.00025547,2]
[356567889,1742686165511,-500.0,0.00025547,2]
[356567890,1742686165538,-500.0,0.00025547,2]
[356567891,1742686165563,-500.0,0.00025547,2]
[356567892,1742686165588,-500.0,0.00025547,2]
[356567893,1742686165613,-500.0,0.00025547,2]
[356567894,1742686165638,-478.27552206,0.00025547,2]
[356567895,1742686165662,-500.0,0.00025547,2]
[356567896,1742686165686,-500.0,0.00025547,2]
[356567897,1742686165711,-500.0,0.00025547,2]
[356567898,1742686165736,-500.0,0.00025547,2]
[356567899,1742686165761,-500.0,0.00025547,2]
[356567900,1742686165787,-500.0,0.00025547,2]
[356567901,1742686165813,-500.0,0.00025547,2]
[356567902,1742686165839,-500.0,0.00025547,2]
[356567903,1742686165865,-500.0,0.00025547,2]
[356567904,1742686165891,-500.0,0.00025547,2]
[356567905,1742686165918,-500.0,0.00025547,2]
[356567906,1742686165945,-500.0,0.00025547,2]
[356567907,1742686165972,-500.0,0.00025547,2]
[356567908,1742686165999,-500.0,0.00025547,2]
[356567909,1742686166024,-500.0,0.00025547,2]
[356567910,1742686166050,-500.0,0.00025547,2]
[356567911,1742686166077,-500.0,0.00025547,2]
[356567912,1742686166103,-500.0,0.00025547,2]
[356567913,1742686166130,-500.0,0.00025547,2]
[356567914,1742686166154,-259.637598,0.00025548,7]
[356567915,1742686166179,-1092.72800534,0.00025548,2]
[356567941,1742686231920,-252.00000002,0.00025547,2]
[356567942,1742686231930,-23807.27199466,0.00025548,2]
[356567943,1742686231940,-250.0,0.00025583,2]
[356567944,1742686231951,-1415.40949522,0.000259,4]
[356567945,1742686231960,-154.705759,0.00026055,4]
[356567946,1742686231971,-1415.40949512,0.00026141,4]
[356567947,1742686231981,-386.70918312,0.000263,2]
[356567948,1742686231991,-500.0,0.000263,2]
[356567949,1742686232002,-298.60244033,0.000263,2]
[356567950,1742686232011,-500.0,0.000263,2]
[356567951,1742686232022,-150.95302394,0.00026356,2]
[356567952,1742686232031,-1415.40949512,0.00026383,4]
[356567953,1742686232040,-38838.8794609,0.00026437,2]
[356567954,1742686232052,-352.02252764,0.00026437,2]
[356567957,1742686237778,-363.5776698,0.00026436,2]
[356567958,1742686237787,-652.4223296,0.00026437,2]
[356567980,1742686243112,-6825.47115556,0.00026437,2]
[356568007,1742686459609,-500.0,0.00022688,2]
[356568008,1742686464562,-275.08581269,0.00021553,2]
[356568011,1742687108812,-176.22338134,0.00021338,2]
[356568013,1742687143130,-185.65247857,0.00021338,2]
[356568014,1742687143153,-74.74223093,0.00021553,2]
[356568015,1742687151220,-176.22338134,0.00021338,2]
[356568016,1742687151662,-150.17195638,0.00021553,2]
[356568017,1742687151686,-482.50121557,0.00023822,2]
[356568018,1742687151707,-539.25640801,0.00025353,2]